bitfinex-derivatives/quotes_SOLF0:USTF0_20240816
["timestamp","ask_amount","ask_price","bid_price","bid_amount"]
[1723817637708,43.03,139.57,139.47,3.5839]
[1723817638014,0.04754135,139.51,139.49,0.04790516]
[1723817638209,43.03,139.57,139.49,0.04790516]
[1723817638427,3.5832,139.51,139.49,0.04790516]
[1723817638807,0.05525259,139.54,139.49,0.04790516]
[1723817639513,3.5832,139.51,139.49,0.04790516]
[1723817639721,0.05525259,139.54,139.49,0.04790516]
[1723817639911,3.5833,139.5,139.49,0.04790516]
[1723817640313,1.3477,139.53,139.49,0.04790516]
[1723817640515,3.5832,139.51,139.49,0.04790516]
[1723817640711,0.05297887,139.51,139.49,0.04790516]
[1723817641232,3.5833,139.5,139.49,0.04790516]
[1723817641412,0.05297887,139.51,139.42,3.51565019]
[1723817641616,3.5845,139.46,139.41,46.6154]
[1723817641816,3.5845,139.46,139.41,43.03]
[1723817642011,44.306,139.5,139.41,46.69567056]
[1723817642717,3.5847,139.45,139.44,0.05191183]
[1723817643315,3.5844,139.46,139.44,0.05191183]
[1723817643624,0.04902865,139.47,139.44,0.05191183]
[1723817644216,3.5846,139.45,139.44,0.05191183]
[1723817644740,0.04902865,139.47,139.38,43.03]
[1723817644921,43.03,139.48,139.38,43.03]
[1723817645312,3.5855,139.42,139.38,43.03]
[1723817645714,55.52609508,139.5,139.39,3.5861]
[1723817646019,0.05274094,139.41,139.39,3.59058865]
[1723817646319,0.04674474,139.41,139.39,3.58943067]
[1723817646712,0.04674474,139.41,139.39,7.17553067]
[1723817647715,0.04674474,139.41,139.39,0.05082825]
[1723817648119,3.5859,139.4,139.39,0.05082825]
[1723817649417,0.04674474,139.41,139.39,0.05082825]
[1723817649810,0.04674474,139.41,139.39,3.65073776]
[1723817650016,3.63254474,139.41,139.39,0.05082825]
[1723817650421,0.04674474,139.41,139.39,0.05082825]
[1723817650621,0.04674474,139.41,139.39,3.663286]
[1723817650917,3.63234474,139.41,139.39,0.05082825]
[1723817651324,0.04674474,139.41,139.39,3.60556412]
[1723817652022,0.04674474,139.41,139.39,7.19166412]
[1723817652218,0.04674474,139.41,139.39,3.60556412]
[1723817652424,0.04674474,139.41,139.4,43.03]
[1723817652823,0.04674474,139.41,139.4,46.6159]
[1723817653018,0.04674474,139.41,139.4,43.03]
[1723817653222,0.04674474,139.41,139.39,3.60556412]
[1723817654022,0.04674474,139.41,139.39,7.19156412]
[1723817654424,0.04674474,139.41,139.39,3.60556412]
[1723817654625,3.5859,139.4,139.39,0.05082825]
[1723817655128,3.63244474,139.41,139.39,3.67870674]
[1723817655329,0.04674474,139.41,139.39,0.05082825]
[1723817655726,0.04674474,139.41,139.39,3.71850656]
[1723817655926,0.04674474,139.41,139.39,0.05082825]
[1723817656126,0.04674474,139.41,139.4,3.66875398]
[1723817656423,0.04674474,139.41,139.39,0.05082825]
[1723817656833,0.04674474,139.41,139.4,3.5859]
[1723817657327,1.276,139.5,139.4,50.63]
[1723817657524,1.2846,139.49,139.42,43.03]
[1723817657726,3.5845,139.46,139.43,3.5851]
[1723817657921,1.2846,139.49,139.42,43.03]
[1723817658328,0.05294457,139.47,139.44,0.05469709]
[1723817659435,3.63714457,139.47,139.44,3.63939709]
[1723817659738,0.05294457,139.47,139.45,43.03]
[1723817659928,0.05294457,139.47,139.46,3.54465159]
[1723817660622,0.05294457,139.47,139.46,3.5843]
[1723817660840,0.05294457,139.47,139.46,3.51561764]
[1723817661027,0.05294457,139.47,139.45,43.03]
[1723817661227,0.05294457,139.47,139.46,3.5843]
[1723817661428,0.05294457,139.47,139.46,7.13576202]
[1723817662037,1.3641,139.53,139.49,3.5834]
[1723817662335,3.5826,139.53,139.49,43.03]
[1723817662531,3.5826,139.53,139.5,3.583]
[1723817662831,2.7011,139.59,139.51,3.67193017]
[1723817663032,2.7011,139.59,139.49,43.03]
[1723817663330,2.7011,139.59,139.54,0.05526342]
[1723817663331,0.05478946,139.56,139.54,0.05526342]
[1723817663533,3.582,139.55,139.54,0.05526342]
[1723817665236,3.583,139.52,139.49,3.53825557]
[1723817665437,43.03,139.58,139.49,3.5834]
[1723817665635,3.5826,139.53,139.5,3.53233051]
[1723817665943,43.03,139.58,139.5,3.53233051]
[1723817666147,43.03,139.58,139.48,3.5837]
[1723817666337,0.05364153,139.55,139.53,0.05084403]
[1723817666933,3.5823,139.54,139.53,0.05084403]
[1723817667134,0.05364153,139.55,139.53,43.08084403]
[1723817667336,0.05364153,139.55,139.54,3.63514784]
[1723817667735,0.05364153,139.55,139.53,7.63084403]
[1723817668034,3.5823,139.54,139.53,0.05084403]
[1723817668935,3.63574153,139.55,139.53,0.05084403]
[1723817669139,0.05364153,139.55,139.53,3.63334403]
[1723817669339,0.05364153,139.55,139.53,46.66334403]
[1723817669738,0.05364153,139.55,139.53,43.08084403]
[1723817670040,0.05364153,139.55,139.54,3.5423164]
[1723817670533,0.05364153,139.55,139.53,43.08084403]
[1723817670739,0.05364153,139.55,139.54,3.5823]
[1723817670936,0.05364153,139.55,139.54,7.08665021]
[1723817671134,2.6545,139.63,139.56,43.03]
[1723817671538,2.6545,139.63,139.56,46.62829151]
[1723817672342,0.04837292,139.61,139.58,0.04632814]
[1723817672862,3.5812,139.59,139.58,0.04632814]
[1723817673241,0.04837292,139.61,139.58,0.04632814]
[1723817674947,3.581,139.59,139.58,0.04632814]
[1723817680479,3.5808,139.6,139.58,0.04632814]
[1723817680661,0.04837292,139.61,139.58,0.04632814]
[1723817681245,3.581,139.59,139.58,0.04632814]
[1723817681546,0.04837292,139.61,139.58,0.04632814]
[1723817682052,3.5809,139.6,139.58,0.04632814]
[1723817682845,3.5809,139.6,139.58,43.07632814]
[1723817683453,3.62897292,139.61,139.58,46.65752814]
[1723817683753,3.62897292,139.61,139.6,43.03]
[1723817683952,0.04837292,139.61,139.6,43.03]
[1723817684158,3.5801,139.63,139.6,46.6105]
[1723817684461,1.3015,139.66,139.6,43.03]
[1723817685356,0.05325359,139.64,139.62,0.05439252]
[1723817686055,0.05325359,139.64,139.62,43.08439252]
[1723817686448,3.63315359,139.64,139.62,46.63986548]
[1723817686853,0.05325359,139.64,139.62,46.63986548]
[1723817687359,3.63305359,139.64,139.62,50.22006548]
[1723817687753,3.5795,139.65,139.62,50.22006548]
[1723817687960,3.5795,139.65,139.64,43.03]
[1723817688759,3.5797,139.64,139.63,0.04834696]
[1723817689853,3.5795,139.65,139.63,0.04834696]
[1723817690556,3.5797,139.64,139.63,0.04834696]
[1723817691157,3.6331808,139.66,139.63,0.04834696]
[1723817691359,0.0538808,139.66,139.63,0.04834696]
[1723817691862,0.0538808,139.66,139.63,34.38834696]
[1723817693164,3.5797,139.65,139.63,34.38834696]
[1723817694660,3.5797,139.64,139.63,34.38834696]
[1723817694868,0.0538808,139.66,139.63,34.38834696]
[1723817695163,7.152,139.79,139.65,68.68]
[1723817695367,7.152,139.79,139.71,34.34]
[1723817695368,3.5776,139.72,139.71,34.34]
[1723817695557,2.6748,139.76,139.71,34.34]
[1723817695757,2.6748,139.76,139.72,34.34]
[1723817695957,1.3197,139.76,139.75,34.34]
[1723817696164,1.3551,139.81,139.75,34.34]
[1723817696372,3.5766,139.76,139.75,34.34]
[1723817697072,3.5763,139.78,139.75,41.88]
[1723817697268,1.3197,139.82,139.77,34.34]
[1723817697463,3.5761,139.78,139.77,34.34]
[1723817697661,1.3197,139.82,139.75,34.34]
[1723817697869,1.3197,139.82,139.74,41.88]
[1723817698069,2.5692,139.81,139.74,7.54]
[1723817698272,0.05418385,139.79,139.77,0.04948097]
[1723817698572,3.5761,139.78,139.77,0.04948097]
[1723817699166,3.5774,139.73,139.72,42.93]
[1723817699367,0.05418385,139.79,139.72,42.93]
[1723817699768,3.5774,139.73,139.71,3.51854343]
[1723817700168,3.5774,139.73,139.7,44.2779]
[1723817700372,3.5775,139.73,139.7,42.93]
[1723817700694,0.05044178,139.73,139.71,0.05497855]
[1723817701469,3.5778,139.72,139.71,0.05497855]
[1723817701771,0.05044178,139.73,139.71,0.05497855]
[1723817702368,0.05044178,139.73,139.72,42.93]
[1723817702978,2.5692,139.81,139.74,42.93]
[1723817703974,2.5692,139.81,139.74,46.5071]
[1723817704175,0.05467655,139.79,139.76,0.05370977]
[1723817705202,124.51467687,139.9,139.77,42.93]
[1723817705370,3.886,139.89,139.8,42.93]
[1723817706278,42.93,139.87,139.76,46.42565161]
[1723817706480,3.71139553,139.86,139.83,0.05099547]
[1723817706673,42.93,139.87,139.77,3.5763]
[1723817706976,3.886,139.89,139.78,42.93]
[1723817707184,0.04878015,139.86,139.83,0.04560157]
[1723817707377,3.5746,139.84,139.83,0.04560157]
[1723817708790,0.04878015,139.86,139.83,0.04560157]
[1723817708791,0.04878015,139.86,139.83,46.51030621]
[1723817708976,0.04878015,139.86,139.83,46.55040157]
[1723817709173,0.04878015,139.86,139.85,42.93]
[1723817709381,2.5677,139.93,139.85,42.93]
[1723817709382,3.9122,139.93,139.85,42.93]
[1723817709880,3.5737,139.88,139.85,42.93]
[1723817710086,3.5737,139.88,139.83,3.55866026]
[1723817710087,1.3445,139.93,139.87,42.93]
[1723817710281,42.93,139.98,139.83,3.55866026]
[1723817710282,2.5677,139.98,139.89,42.93]
[1723817710480,1.2592,139.96,139.89,42.93]
[1723817710675,2.5677,139.98,139.91,42.93]
[1723817711475,2.5677,139.98,139.89,42.93]
[1723817711680,1.2592,140.0,139.92,42.93]
[1723817711881,42.93,139.97,139.93,0.04571754]
[1723817712076,3.5738,139.87,139.85,50.47]
[1723817712276,3.63186819,139.95,139.85,50.47]
[1723817712477,2.6802,139.94,139.85,50.47]
[1723817712679,3.5735,139.89,139.85,54.0443]
[1723817712879,2.6802,139.94,139.85,54.0443]
[1723817713083,2.6802,139.94,139.88,42.93]
[1723817713281,0.04571754,139.91,139.88,0.05435612]
[1723817713787,3.5733,139.89,139.88,0.05435612]
[1723817714085,0.04571754,139.91,139.88,42.98435612]
[1723817714480,3.61861754,139.91,139.88,42.98435612]
[1723817714686,0.04571754,139.91,139.88,42.98435612]
[1723817715084,0.04571754,139.91,139.9,42.93]
[1723817715484,3.5732,139.9,139.88,42.98435612]
[1723817716489,3.61861754,139.91,139.88,42.98435612]
[1723817716690,0.04571754,139.91,139.9,42.93]
[1723817716898,0.04571754,139.91,139.9,46.45988279]
[1723817717191,0.04571754,139.91,139.9,42.93]
[1723817717693,0.04571754,139.91,139.9,46.48346297]
[1723817717881,3.5724,139.93,139.9,50.05646297]
[1723817718083,1.2592,140.0,139.92,42.93]
[1723817718692,1.2592,140.0,139.92,46.55277444]
[1723817718884,1.2592,140.0,139.96,42.93]
[1723817719198,3.5713,139.97,139.96,42.93]
[1723817719385,2.6357,140.02,139.96,42.93]
[1723817719695,3.5709,139.99,139.96,42.93]
[1723817719986,1.2722,140.07,139.96,42.93]
[1723817720191,2.6795,140.06,139.98,42.93]
[1723817720382,2.6795,140.06,140.0,0.05372771]
[1723817720579,3.5703,140.01,140.0,0.05372771]
[1723817721585,1.2722,140.07,140.0,46.55412771]
[1723817721799,1.2722,140.07,140.0,50.07071779]
[1723817722205,3.5696,140.04,140.03,42.93]
[1723817722385,1.2722,140.07,140.03,42.93]
[1723817722586,3.5695,140.04,140.03,42.93]
[1723817722988,1.2722,140.07,140.03,42.93]
[1723817723188,2.6964,140.1,140.05,42.93]
[1723817723488,2.6964,140.1,140.03,42.93]
[1723817724092,2.6964,140.1,140.05,0.05297439]
[1723817724393,8.8917,140.12,140.05,42.98297439]
[1723817724685,3.5688,140.07,140.05,42.98297439]
[1723817725184,3.5689,140.07,140.05,42.98297439]
[1723817725390,1.3717,140.12,140.05,42.98297439]
[1723817725588,44.3017,140.12,140.05,0.05297439]
[1723817725789,3.569,140.06,140.05,0.05297439]
[1723817727691,3.569,140.06,140.05,42.98297439]
[1723817728281,3.5687,140.07,140.05,42.98297439]
[1723817728494,1.3717,140.12,140.05,42.98297439]
[1723817729083,1.3717,140.12,140.07,42.93]
[1723817729287,3.569,140.06,140.05,0.05297439]
[1723817729797,3.569,140.06,139.98,10.1925]
[1723817729798,3.5707,139.99,139.98,42.93]
[1723817730589,1.3139,140.05,139.94,44.241]
[1723817730817,1.3139,140.05,139.91,42.93]
[1723817730818,42.93,140.02,139.91,42.93]
[1723817731022,3.5727,139.92,139.91,42.93]
[1723817731189,42.93,140.0,139.95,0.04771061]
[1723817731400,3.5741,139.86,139.8,3.5756]
[1723817731588,49.0,139.94,139.79,46.50061205]
[1723817731589,46.56984731,139.9,139.79,46.50061205]
[1723817731791,42.93,139.87,139.72,7.5]
[1723817731997,42.93,139.87,139.76,42.93]
[1723817732196,7.5,139.86,139.76,42.93]
[1723817732590,42.93,139.85,139.74,42.93]
[1723817732798,42.93,139.83,139.72,42.93]
[1723817733095,46.5053,139.81,139.8,0.05042288]
[1723817733394,46.46234962,139.81,139.69,42.93]
[1723817733584,42.93,139.79,139.67,42.93]
[1723817733990,51.56,139.79,139.66,51.56]
[1723817734195,52.8716,139.82,139.69,51.56]
[1723817734400,7.5,139.78,139.69,51.56]
[1723817734900,0.051642,139.74,139.71,0.05005748]
[1723817735419,3.54593833,139.73,139.62,51.56]
[1723817735704,0.051642,139.74,139.62,51.56]
[1723817735890,59.08,139.72,139.6,51.56]
[1723817736394,3.63048947,139.71,139.6,51.56]
[1723817736593,1.0,139.73,139.62,51.56]
[1723817736899,1.0,139.73,139.65,0.04877614]
[1723817736900,0.04748671,139.67,139.65,0.04877614]
[1723817737396,3.62638671,139.67,139.65,0.04877614]
[1723817737705,0.04748671,139.67,139.65,0.04877614]
[1723817737899,7.52,139.72,139.65,0.04877614]
[1723817738087,3.5791,139.67,139.65,0.04877614]
[1723817738399,7.52,139.72,139.56,1.2746]
[1723817738400,51.56,139.71,139.56,1.2746]
[1723817738605,0.05012846,139.67,139.6,51.56]
[1723817739701,0.05012846,139.67,139.57,51.56]
[1723817740090,7.52,139.66,139.62,0.04520843]
[1723817740397,51.56,139.65,139.52,62.63487827]
[1723817740709,0.05126283,139.64,139.52,62.63487827]
[1723817740898,3.581,139.59,139.52,55.11487827]
[1723817741093,3.581,139.59,139.54,3.5822]
[1723817741498,0.05126283,139.64,139.57,51.56]
[1723817741696,7.52,139.68,139.59,51.56]
[1723817742205,3.64783463,139.67,139.57,0.04831068]
[1723817742401,0.04569654,139.62,139.57,0.04831068]
[1723817742598,0.04569654,139.62,139.59,55.14416797]
[1723817742800,0.04569654,139.62,139.59,51.56]
[1723817742996,0.04569654,139.62,139.59,55.10169648]
[1723817743200,36.12,139.7,139.6,3.5807]
[1723817743393,28.6,139.7,139.61,51.56]
[1723817743601,3.5795,139.65,139.61,51.56]
[1723817743902,51.56,139.72,139.6,3.52723664]
[1723817744407,51.56,139.7,139.58,49.0]
[1723817744599,3.5807,139.6,139.58,49.0]
[1723817744791,11.08689842,139.67,139.58,49.0]
[1723817744995,51.56,139.65,139.58,49.0]
[1723817745195,3.581,139.59,139.58,49.0]
[1723817749002,3.581,139.59,139.58,44.844]
[1723817749204,3.581,139.59,139.58,40.844]
[1723817749412,3.581,139.59,139.58,38.7663]
[1723817749800,55.141,139.59,139.58,33.0051]
[1723817750111,55.141,139.59,139.58,28.8495]
[1723817750401,3.581,139.59,139.58,28.8495]
[1723817751701,3.581,139.59,139.58,25.30354029]
[1723817752010,3.5812,139.58,139.57,0.05385637]
[1723817753008,3.5812,139.58,139.57,6.00005637]
[1723817753209,3.5838,139.48,139.47,2.6383]
[1723817753509,51.56,139.58,139.47,2.6383]
[1723817753810,7.52,139.59,139.49,51.56]
[1723817753999,51.56,139.58,139.47,54.1983]
[1723817754200,3.5832,139.51,139.47,54.1983]
[1723817754511,7.52,139.59,139.47,54.1983]
[1723817754802,0.05276822,139.55,139.53,0.05424722]
[1723817755204,3.5822,139.54,139.53,0.05424722]
[1723817755406,0.05276822,139.55,139.53,0.05424722]
[1723817755714,3.63476822,139.55,139.53,0.05424722]
[1723817755905,7.52,139.61,139.53,0.05424722]
[1723817756305,7.52,139.61,139.54,51.56]
[1723817756609,66.9524886,139.62,139.53,0.05424722]
[1723817756809,237.52,139.65,139.53,0.05424722]
[1723817757009,241.01941577,139.65,139.52,55.05941577]
[1723817757207,3.5811,139.59,139.52,55.05941577]
[1723817757508,0.05203898,139.6,139.58,0.04511375]
[1723817757904,3.5806,139.61,139.56,4.966]
[1723817758114,7.52,139.65,139.56,4.95772346]
[1723817758311,51.56,139.68,139.58,0.04726945]
[1723817758514,0.0460045,139.6,139.58,0.04726945]
[1723817758700,36.14,139.69,139.58,0.04726945]
[1723817758905,3.5796,139.65,139.6,3.5806]
[1723817759128,52.56,139.71,139.59,51.56]
[1723817759129,60.08,139.71,139.59,51.56]
[1723817759441,7.52,139.71,139.61,51.56]
[1723817759628,51.56,139.73,139.62,3.58]
[1723817759809,51.56,139.73,139.61,51.56]
[1723817760216,51.56,139.71,139.59,51.56]
[1723817760408,51.56,139.68,139.57,52.9146]
[1723817761020,0.05072635,139.67,139.65,0.04544028]
[1723817761417,0.05072635,139.67,139.57,54.2138]
[1723817761418,51.56,139.68,139.57,2.6538]
[1723817762037,0.04807536,139.67,139.65,0.04943377]
[1723817762613,51.56,139.69,139.57,54.2138]
[1723817762821,51.56,139.66,139.57,2.6538]
[1723817763209,51.56,139.66,139.65,0.05161774]
[1723817763712,51.56,139.66,139.57,1.2992]
[1723817764024,3.5815,139.57,139.56,1.3845]
[1723817764514,55.20549953,139.67,139.56,1.3845]
[1723817764719,59.08,139.67,139.57,1.3729]
[1723817765217,3.5809,139.6,139.57,2.7458]
[1723817765721,0.05256475,139.63,139.61,0.05168511]
[1723817765927,55.16718616,139.67,139.61,0.05168511]
[1723817766215,0.05044017,139.63,139.57,4.9543]
[1723817766415,0.05044017,139.63,139.57,1.3729]
[1723817766617,7.52,139.68,139.59,51.56]
[1723817766811,7.52,139.72,139.61,51.56]
[1723817767013,7.52,139.72,139.63,51.56]
[1723817767219,7.52,139.72,139.64,2.7244]
[1723817767516,230.0,139.77,139.66,51.56]
[1723817767714,230.0,139.77,139.68,51.56]
[1723817768014,55.07014948,139.81,139.68,51.56]
[1723817768015,8.19606572,139.82,139.73,51.56]
[1723817768208,63.9615715,139.86,139.73,51.56]
[1723817768209,3.58319518,139.85,139.74,1.3611]
[1723817768412,51.56,139.83,139.74,1.3611]
[1723817768618,55.06198282,139.83,139.74,1.3611]
[1723817769020,0.04508908,139.81,139.74,1.3611]
[1723817769415,51.60508908,139.81,139.74,1.3611]
[1723817769815,3.5769,139.75,139.74,1.3611]
[1723817770327,3.5766,139.77,139.74,1.3611]
[1723817770532,51.56,139.85,139.74,1.3611]
[1723817770921,3.5755,139.81,139.74,52.9211]
[1723817771220,0.04707762,139.77,139.75,7.5]
[1723817771414,0.04707762,139.77,139.74,1.3611]
[1723817771811,0.04707762,139.77,139.75,4.8894]
[1723817772116,7.5,139.86,139.76,0.04529016]
[1723817772314,7.5,139.86,139.76,3.56726411]
[1723817772516,7.5,139.86,139.76,0.04529016]
[1723817772917,7.5,139.86,139.75,1.3126]
[1723817773318,0.0531777,139.82,139.8,0.05011767]
[1723817773922,3.5755,139.81,139.8,0.05011767]
[1723817774835,51.56,139.9,139.8,0.05011767]
[1723817775324,3.5744,139.85,139.8,0.05011767]
[1723817775515,51.56,139.9,139.79,55.1358]
[1723817775716,51.56,139.9,139.79,51.56]
[1723817776316,0.04564428,139.86,139.83,0.04623822]
[1723817776524,0.04564428,139.86,139.83,3.62083822]
[1723817776914,3.55206225,139.97,139.84,1.2526]
[1723817776915,51.56,139.94,139.84,1.2526]
[1723817777114,51.56,139.94,139.84,2.5013]
[1723817778332,0.04715546,139.9,139.88,0.04871112]
[1723817778617,3.5729,139.91,139.88,0.04871112]
[1723817778818,59.06,139.97,139.88,0.04871112]
[1723817779017,55.14021032,140.0,139.89,3.5732]
[1723817779214,51.56,139.97,139.86,51.56]
[1723817779623,51.56,139.97,139.88,3.5735]
[1723817779814,51.56,139.97,139.87,7.48]
[1723817780012,51.56,139.97,139.9,0.05113484]
[1723817780211,3.5724,139.93,139.9,0.05113484]
[1723817780413,51.56,140.0,139.9,0.05113484]
[1723817780816,51.56,140.0,139.89,3.60701365]
[1723817781024,51.56,140.0,139.89,3.5732]
[1723817781326,51.56,140.0,139.94,0.05158851]
[1723817781729,3.5719,139.95,139.94,0.05158851]
[1723817782422,51.56,139.97,139.87,7.48]
[1723817782823,51.56,139.95,139.84,54.0613]
[1723817783028,51.56,139.95,139.93,0.05266535]
[1723817783228,51.56,139.97,139.85,7.48]
[1723817783530,51.56,139.97,139.93,0.05413124]
[1723817783829,51.56,139.99,139.89,3.56178303]
[1723817784021,51.56,139.99,139.94,0.04948185]
[1723817784217,51.56,139.99,139.85,7.48]
[1723817784218,51.56,139.96,139.85,7.48]
[1723817784434,3.5722,139.94,139.88,3.5735]
[1723817784730,51.56,140.01,139.9,0.05109909]
[1723817785027,1.3364,140.02,139.9,0.05109909]
[1723817785028,1.3364,140.02,139.91,55.1328]
[1723817785251,51.56,140.03,139.91,51.56]
[1723817785426,51.56,140.03,139.95,0.05051059]
[1723817785730,7.48,140.06,139.96,51.56]
[1723817785929,51.56,140.08,139.96,51.56]
[1723817786427,51.56,140.1,139.98,51.56]
[1723817786618,51.56,140.08,139.95,51.56]
[1723817786817,51.56,140.08,140.01,0.05020723]
[1723817787324,51.56,140.1,140.01,0.05020723]
[1723817787830,51.56,140.1,140.0,1.3575]
[1723817788028,51.56,140.1,140.0,8.8375]
[1723817788232,51.56,140.1,140.0,4.0354]
[1723817788528,51.56,140.08,140.04,0.04512454]
[1723817789250,3.5692,140.05,140.04,0.04512454]
[1723817790628,3.5692,140.05,139.96,2.6779]
[1723817790629,3.571,139.99,139.96,2.6779]
[1723817790824,51.56,140.07,139.96,2.6779]
[1723817791024,51.56,140.07,139.96,54.2379]
[1723817791231,3.5701,140.02,139.96,54.2379]
[1723817791531,0.04774439,140.04,139.98,51.56]
[1723817791726,3.5697,140.03,139.98,55.21891092]
[1723817791933,3.5697,140.03,139.98,58.78961092]
[1723817792229,51.56,140.1,139.98,55.21891092]
[1723817792428,51.56,140.12,140.0,55.1303]
[1723817792629,0.05476221,140.02,140.0,59.04]
[1723817792834,3.5688,140.07,140.03,51.56]
[1723817793177,2.6915,140.13,140.03,51.56]
[1723817793639,2.6915,140.13,140.01,51.56]
[1723817793941,51.56,140.1,140.0,7.48]
[1723817794434,51.56,140.1,140.06,0.04995338]
[1723817794651,3.5687,140.07,140.06,0.04995338]
[1723817795029,3.5687,140.07,139.96,54.2379]
[1723817795030,55.05605134,140.07,139.96,2.6779]
[1723817795338,51.56,140.05,139.96,2.6779]
[1723817795641,51.56,140.05,139.94,1.2878]
[1723817795939,51.56,140.02,139.91,3.57122471]
[1723817796131,59.04,140.02,139.88,52.9056]
[1723817796329,0.04731274,140.01,139.98,0.04622763]
[1723817796528,3.5724,139.93,139.89,3.53317881]
[1723817796837,51.56,140.0,139.89,3.53317881]
[1723817797037,51.56,140.0,139.88,52.9056]
[1723817797251,3.5721,139.94,139.88,52.9056]
[1723817797532,52.8496,140.04,139.91,51.56]
[1723817797837,55.174277,140.15,139.93,51.56]
[1723817797838,7.48,140.03,139.93,51.56]
[1723817798033,36.04,140.07,139.95,51.56]
[1723817798230,36.04,140.07,139.93,59.04]
[1723817798231,51.56,140.06,139.93,59.04]
[1723817798434,0.05319937,139.99,139.94,3.572]
[1723817798631,3.62389937,139.99,139.98,0.05218737]
[1723817799140,3.571,139.98,139.97,0.05447028]
[1723817799438,0.05319937,139.99,139.89,51.56]
[1723817799637,51.56,140.0,139.89,55.1333]
[1723817799836,51.56,140.0,139.88,8.8256]
[1723817800036,51.56,140.0,139.88,12.399]
[1723817800240,51.56,140.0,139.88,8.8256]
[1723817800542,51.56,139.97,139.88,1.3456]
[1723817800735,51.56,139.97,139.93,0.04867164]
[1723817800736,3.572,139.94,139.93,0.04867164]
[1723817801637,0.04551238,139.95,139.93,0.04867164]
[1723817803033,0.04551238,139.95,139.94,51.56]
[1723817803234,1.3124,140.06,139.94,51.56]
[1723817803543,59.04,140.11,139.97,51.56]
[1723817803838,51.56,140.06,139.96,7.48]
[1723817804039,3.5712,139.98,139.96,7.48]
[1723817804539,3.5712,139.98,139.95,1.365]
[1723817804839,0.05292237,139.98,139.97,51.56]
[1723817805053,9.8235,140.09,139.97,55.21229125]
[1723817805834,2.6868,140.09,140.0,51.56]
[1723817806148,51.56,140.13,140.0,59.04]
[1723817806443,0.05060321,140.06,140.03,0.05144792]
[1723817807133,2.6252,140.13,140.02,51.56]
[1723817807534,3.61784518,140.06,140.03,0.04617306]
[1723817808134,3.569,140.06,140.02,51.56]
[1723817808337,2.6252,140.13,140.02,51.56]
[1723817808564,0.04733608,140.06,140.03,3.61831082]
[1723817809244,2.6252,140.13,140.01,1.3426]
[1723817809451,3.5693,140.05,140.01,1.3426]
[1723817809763,0.04621809,140.06,140.03,0.04617028]
[1723817809935,3.5696,140.04,140.03,0.04617028]
[1723817810345,58.6957,140.11,139.99,3.5707]
[1723817810648,0.05408929,140.05,140.02,0.05391068]
[1723817811046,55.21715188,140.06,139.96,2.6656]
[1723817811245,51.56,140.06,139.96,2.6656]
[1723817811438,51.56,140.06,139.96,6.2371]
[1723817811745,0.0511173,140.05,140.02,0.05420056]
[1723817811947,3.5697,140.03,140.02,0.05420056]
[1723817812147,51.56,140.04,139.91,51.56]
[1723817812449,52.9368,140.04,139.91,51.56]
[1723817812646,3.5714,139.97,139.91,51.56]
[1723817812849,52.9368,140.04,139.92,3.55556641]
[1723817813153,7.46,140.03,139.92,3.55556641]
[1723817813350,7.46,140.03,139.91,51.56]
[1723817813651,0.054496,139.99,139.97,0.05093873]
[1723817815654,8.514,140.08,139.98,51.56]
[1723817815948,3.5702,140.02,139.98,57.7863]
[1723817816276,1.3768,140.08,139.98,54.2154]
[1723817816547,3.57,140.02,139.98,54.2154]
[1723817816857,1.3768,140.08,139.98,54.2154]